bitfinex-derivatives/quotes_SOLF0:USTF0_20250808
["timestamp","ask_amount","ask_price","bid_price","bid_amount"]
[1754661711415,6.48005903,178.61,178.6,5.5969]
[1754661711911,3.12,178.61,178.6,5.5969]
[1754661712304,10.32848697,178.61,178.6,5.5969]
[1754661712618,3.12,178.59,178.58,235.0]
[1754661712910,3.36005903,178.59,178.58,352.3]
[1754661713211,4.97402222,178.61,178.6,2.14]
[1754661713515,3.84842794,178.7,178.62,5.5961]
[1754661713709,3.84842794,178.7,178.6,2.14]
[1754661713710,6.96842794,178.69,178.63,117.3]
[1754661713909,3.84842794,178.68,178.63,117.3]
[1754661714111,3.84842794,178.67,178.63,117.3]
[1754661714320,3.84842794,178.66,178.63,117.3]
[1754661714508,3.84842794,178.65,178.63,119.44]
[1754661714818,3.85969921,178.67,178.64,2.14]
[1754661715012,3.85969921,178.66,178.65,2.14]
[1754661715210,10.59101612,178.77,178.68,5.5944]
[1754661715211,3.85969921,178.69,178.68,5.5944]
[1754661715507,3.12,178.68,178.62,10.59101612]
[1754661715705,3.85969921,178.67,178.66,5.5951]
[1754661715906,3.85969921,178.67,178.66,122.8351]
[1754661716611,6.97969921,178.67,178.66,122.8351]
[1754661717916,6.97969921,178.67,178.66,122.8151]
[1754661718111,6.97969921,178.67,178.66,5.5951]
[1754661718417,3.12,178.7,178.69,5.5941]
[1754661718618,6.97969921,178.7,178.69,122.7941]
[1754661719718,6.97969921,178.7,178.69,122.7741]
[1754661720220,3.12,178.69,178.65,237.14]
[1754661720408,3.85969921,178.68,178.67,2.14]
[1754661720718,3.12,178.69,178.67,235.0]
[1754661720907,3.85969921,178.68,178.67,240.5948]
[1754661721116,6.97969921,178.68,178.67,5.5948]
[1754661721315,6.97969921,178.68,178.62,8.57000684]
[1754661721517,3.12,178.65,178.63,117.14]
[1754661721813,6.97969921,178.66,178.63,119.28]
[1754661722118,3.12,178.66,178.65,5.5954]
[1754661722318,3.12,178.67,178.64,2.14]
[1754661722616,3.85862091,178.69,178.65,2.14]
[1754661722817,6.97862091,178.68,178.66,6.43000684]
[1754661723010,3.12,178.75,178.67,117.1]
[1754661723410,3.12,178.75,178.68,5.5944]
[1754661723615,3.12,178.73,178.67,117.1]
[1754661724612,3.12,178.71,178.67,117.1]
[1754661724812,3.12,178.73,178.67,117.1]
[1754661725008,3.12,178.8,178.71,5.5935]
[1754661725210,6.43000684,178.76,178.71,117.06]
[1754661725420,3.31516588,178.75,178.71,117.06]
[1754661725619,3.12,178.73,178.71,117.06]
[1754661725916,3.12,178.71,178.7,117.06]
[1754661726122,3.15,178.7,178.64,2.14]
[1754661726322,3.15,178.68,178.65,2.14]
[1754661726518,6.46516588,178.67,178.66,117.04]
[1754661727115,3.31516588,178.67,178.66,122.6351]
[1754661727517,6.46516588,178.67,178.66,117.04]
[1754661727715,3.15,178.66,178.64,117.02]
[1754661728015,6.43000684,178.74,178.65,117.02]
[1754661728221,3.31892589,178.73,178.68,5.5944]
[1754661728415,6.46892589,178.72,178.65,117.02]
[1754661728625,3.15,178.7,178.62,2.14]
[1754661728825,3.15,178.68,178.63,119.12]
[1754661729125,3.31892589,178.67,178.65,2.14]
[1754661729322,6.46892589,178.66,178.65,5.5954]
[1754661729513,6.46892589,178.66,178.65,122.5754]
[1754661729716,6.46892589,178.66,178.65,116.98]
[1754661730017,3.31892589,178.66,178.65,119.12]
[1754661730213,3.31892589,178.66,178.65,116.98]
[1754661730417,3.31892589,178.66,178.65,122.5754]
[1754661730628,6.46892589,178.66,178.65,122.5754]
[1754661731421,3.31892589,178.66,178.59,8.57000684]
[1754661731617,3.15,178.63,178.6,119.08]
[1754661731815,3.31892589,178.62,178.61,2.14]
[1754661732023,3.31892589,178.62,178.61,237.14]
[1754661732218,3.31892589,178.62,178.61,243.57000684]
[1754661732423,3.15,178.69,178.62,2.14]
[1754661732625,3.15,178.68,178.65,2.14]
[1754661732826,3.15,178.68,178.66,116.92]
[1754661733323,3.15,178.74,178.66,351.92]
[1754661733522,3.15,178.74,178.68,5.5943]
[1754661733730,3.15,178.74,178.66,351.92]
[1754661733916,6.43000684,178.73,178.66,351.92]
[1754661734221,6.43000684,178.71,178.67,116.9]
[1754661734425,3.15,178.7,178.66,116.9]
[1754661734826,6.43000684,178.73,178.66,116.9]
[1754661735024,3.15,178.72,178.67,116.88]
[1754661735228,3.15,178.72,178.67,122.4745]
[1754661735432,3.15,178.72,178.67,116.88]
[1754661735927,6.21555816,178.76,178.59,6.43000684]
[1754661735928,6.43000684,178.69,178.59,6.43000684]
[1754661736123,3.15,178.68,178.59,8.57000684]
[1754661736632,3.15,178.68,178.6,116.84]
[1754661737131,3.15,178.68,178.61,8.57000684]
[1754661737331,3.15,178.68,178.63,5.596]
[1754661737928,3.15,178.68,178.61,2.14]
[1754661737929,3.15,178.68,178.64,5.5955]
[1754661738131,3.15,178.68,178.61,2.14]
[1754661738330,3.15,178.68,178.64,5.5955]
[1754661739025,12.645565,178.71,178.65,5.5953]
[1754661739233,3.15,178.7,178.65,5.5953]
[1754661739527,3.15,178.7,178.66,5.595]
[1754661739732,3.15,178.7,178.62,8.57000684]
[1754661740030,3.15,178.7,178.66,5.595]
[1754661740226,3.15,178.7,178.62,8.57000684]
[1754661740530,12.02410684,178.69,178.6,123.27000684]
[1754661740835,3.15,178.68,178.6,116.84]
[1754661741431,3.15,178.68,178.61,2.14]
[1754661741627,3.15,178.68,178.64,5.5955]
[1754661741823,3.15,178.68,178.61,2.14]
[1754661742029,3.15,178.68,178.63,5.5958]
[1754661742229,3.15,178.68,178.61,243.57000684]
[1754661742433,3.15,178.68,178.61,237.14]
[1754661742733,3.15,178.68,178.61,243.57000684]
[1754661742933,3.15,178.68,178.62,116.74]
[1754661743136,3.15,178.68,178.62,122.3361]
[1754661743633,3.15,178.66,178.62,116.74]
[1754661744033,3.15,178.66,178.58,2.14]
[1754661744241,3.15,178.62,178.56,376.34]
[1754661744535,3.23117008,178.61,178.57,2.14]
[1754661744834,3.15,178.63,178.6,7.737]
[1754661745034,3.15,178.61,178.56,378.48]
[1754661745237,6.38095111,178.6,178.57,2.14]
[1754661745433,3.23095111,178.59,178.58,118.82]
[1754661745634,3.23095111,178.59,178.58,122.2773]
[1754661746331,3.23095111,178.59,178.58,124.4173]
[1754661746733,1.09095111,178.59,178.58,130.0173]
[1754661746932,1.09095111,178.59,178.58,136.44730684]
[1754661747130,3.15,178.63,178.61,5.5965]
[1754661747340,3.15,178.63,178.62,116.66]
[1754661747536,3.15,178.63,178.56,376.34]
[1754661747834,3.15,178.63,178.59,5.5972]
[1754661748041,6.21555816,178.66,178.59,5.5972]
[1754661748234,3.15,178.61,178.59,5.5972]
[1754661748539,3.15,178.6,178.58,5.5975]
[1754661749535,3.15,178.6,178.59,5.5973]
[1754661750337,3.15,178.59,178.57,116.66]
[1754661750537,3.15,178.58,178.57,116.66]
[1754661751131,3.15,178.58,178.56,116.6]
[1754661751336,3.15,178.59,178.56,116.6]
[1754661751744,3.15,178.59,178.56,112.40013939]
[1754661752639,3.15,178.6,178.56,112.40013939]
[1754661753145,3.89322424,178.59,178.56,112.40013939]
[1754661753344,19.68878924,178.58,178.51,116.56]
[1754661753644,3.15,178.55,178.51,116.56]
[1754661753841,3.89322424,178.54,178.53,12.02910684]
[1754661754345,3.89322424,178.54,178.53,5.5991]
[1754661754640,7.04322424,178.54,178.53,5.5991]
[1754661755141,7.04322424,178.54,178.53,116.52]
[1754661756940,7.04322424,178.54,178.5,122.0998]
[1754661757135,3.89322424,178.53,178.5,122.0998]
[1754661757346,2.97,178.51,178.5,116.5]
[1754661757544,6.86322424,178.51,178.5,116.5]
[1754661758539,2.97,178.5,178.47,116.46]
[1754661758737,6.43000684,178.52,178.47,116.46]
[1754661758738,2.97,178.48,178.47,116.46]
[1754661758946,10.06767975,178.48,178.47,116.46]
[1754661759145,2.97,178.47,178.4,6.43000684]
[1754661759347,2.97,178.44,178.41,116.46]
[1754661759543,3.89322424,178.43,178.42,12.03260684]
[1754661759848,2.97,178.5,178.42,12.86001368]
[1754661760048,6.21555816,178.55,178.41,121.46]
[1754661760049,2.97,178.49,178.47,5.6007]
[1754661760249,6.21555816,178.56,178.48,116.44]
[1754661760548,2.97,178.53,178.48,116.44]
[1754661761139,2.97,178.54,178.49,6.43000684]
[1754661761344,2.97,178.53,178.49,6.43000684]
[1754661761541,2.97,178.53,178.51,6.43000684]
[1754661761743,2.97,178.58,178.52,116.44]
[1754661761945,2.97,178.6,178.55,6.43000684]
[1754661762147,2.97,178.6,178.56,116.42]
[1754661762351,2.97,178.6,178.56,112.21914678]
[1754661762551,9.18555816,178.6,178.56,112.21914678]
[1754661762748,2.97,178.6,178.56,112.21914678]
[1754661763146,9.18555816,178.6,178.56,112.21914678]
[1754661763346,2.97,178.59,178.56,112.21914678]
[1754661763855,6.21555816,178.62,178.56,112.21914678]
[1754661764050,2.97,178.59,178.57,12.02780684]
[1754661764251,9.18555816,178.62,178.57,6.43000684]
[1754661764452,2.97,178.61,178.57,6.43000684]
[1754661764654,2.97,178.61,178.56,112.21914678]
[1754661766147,2.97,178.61,178.44,246.2038]
[1754661766148,2.97,178.58,178.51,116.34]
[1754661766349,2.97,178.58,178.53,6.43000684]
[1754661766550,2.97,178.57,178.53,6.43000684]
[1754661766754,2.97,178.56,178.53,6.43000684]
[1754661767057,31.6951109,178.83,178.55,6.43000684]
[1754661767058,2.97,178.59,178.55,6.43000684]
[1754661767351,2.97,178.61,178.55,6.43000684]
[1754661767553,6.21555816,178.64,178.59,6.43000684]
[1754661767755,2.97,178.62,178.59,6.43000684]
[1754661768953,2.97,178.66,178.59,6.43000684]
[1754661769254,2.97,178.65,178.59,6.43000684]
[1754661769455,2.97,178.64,178.59,6.43000684]
[1754661770059,2.97,178.64,178.58,116.3]
[1754661770060,2.97,178.65,178.61,6.43000684]
[1754661770354,2.97,178.67,178.63,12.02590684]
[1754661770549,2.97,178.65,178.58,116.3]
[1754661770950,2.97,178.65,178.58,122.73000684]
[1754661771151,6.21555816,178.65,178.58,122.73000684]
[1754661771356,6.21555816,178.65,178.58,122.65000684]
[1754661771357,2.97,178.64,178.58,122.65000684]
[1754661771755,2.97,178.62,178.58,122.65000684]
[1754661771957,3.11605145,178.61,178.58,122.65000684]
[1754661772149,6.08605145,178.6,178.58,128.24750684]
[1754661772351,6.08605145,178.59,178.58,122.65000684]
[1754661773164,6.08605145,178.59,178.58,116.22]
[1754661773462,3.11605145,178.59,178.51,6.43000684]
[1754661773663,9.48766306,178.65,178.5,116.18]
[1754661773664,15.76161645,178.58,178.5,116.18]
[1754661773962,3.11605145,178.57,178.51,6.43000684]
[1754661774158,3.11605145,178.56,178.51,6.43000684]
[1754661774356,2.97,178.54,178.51,6.43000684]
[1754661774559,2.97,178.52,178.5,116.18]
[1754661774758,6.08605145,178.51,178.5,116.18]
[1754661775066,3.11605145,178.51,178.5,116.18]
[1754661775266,6.08605145,178.51,178.5,116.18]
[1754661775956,3.11605145,178.51,178.5,116.18]
[1754661776354,3.11914224,178.51,178.5,116.18]
[1754661776559,3.11914224,178.51,178.5,121.7801]
[1754661776752,6.21555816,178.59,178.5,116.18]
[1754661776753,2.97,178.55,178.5,116.18]
[1754661776953,3.1188881,178.54,178.53,12.02910684]
[1754661777162,2.97,178.57,178.53,12.02910684]
[1754661777358,2.97,178.59,178.54,116.14]
[1754661777764,2.97,178.59,178.54,121.7387]
[1754661778059,6.21555816,178.6,178.54,116.14]
[1754661778256,2.97,178.61,178.58,12.02750684]
[1754661778456,2.97,178.61,178.6,6.43000684]
[1754661778663,2.97,178.63,178.6,6.43000684]
[1754661778861,6.21555816,178.65,178.6,12.02670684]
[1754661779058,2.97,178.62,178.61,6.43000684]
[1754661779457,2.97,178.61,178.6,6.43000684]
[1754661779865,2.97,178.64,178.58,121.7175]
[1754661780057,2.97,178.63,178.58,128.14750684]
[1754661780261,6.21555816,178.63,178.57,116.08]
[1754661780565,9.18555816,178.62,178.57,122.51000684]
[1754661780866,6.21555816,178.62,178.57,12.02770684]
[1754661781062,6.21555816,178.62,178.57,128.10770684]
[1754661781266,2.97,178.61,178.57,122.51000684]
[1754661781562,6.21555816,178.61,178.57,116.08]
[1754661781866,2.97,178.59,178.57,116.08]
[1754661782065,2.97,178.58,178.57,116.08]
[1754661782472,6.21555816,178.61,178.57,122.51000684]
[1754661782667,2.97,178.61,178.57,122.51000684]
[1754661782965,2.97,178.6,178.57,128.10780684]
[1754661783265,2.97,178.6,178.57,122.51000684]
[1754661783466,2.97,178.6,178.57,111.87970288]
[1754661783875,2.97,178.6,178.57,118.30970972]
[1754661784167,2.97,178.59,178.57,111.87970288]
[1754661784366,6.21555816,178.62,178.58,6.43000684]
[1754661784570,2.97,178.62,178.61,6.43000684]
[1754661784770,2.97,178.62,178.61,116.0]
[1754661784973,2.97,178.62,178.58,115.98]
[1754661785165,2.97,178.61,178.58,115.98]
[1754661785371,6.21555816,178.62,178.59,6.43000684]
[1754661785372,2.97,178.62,178.59,6.43000684]
[1754661785668,9.18555816,178.64,178.61,6.43000684]
[1754661785872,2.97,178.64,178.62,115.98]
[1754661786467,3.1,178.63,178.59,115.96]
[1754661786663,3.1,178.62,178.59,115.96]
[1754661786863,6.21555816,178.61,178.54,6.43000684]
[1754661787167,3.1,178.6,178.56,5.5982]
[1754661787362,3.1,178.59,178.55,115.96]
[1754661787572,6.21555816,178.59,178.52,382.83000684]
[1754661787776,6.21555816,178.59,178.55,121.5385]
[1754661788074,3.1,178.56,178.55,115.94]
[1754661788470,6.21555816,178.59,178.55,115.94]
[1754661788669,3.1,178.59,178.55,115.94]
[1754661788873,3.21530467,178.58,178.55,115.94]
[1754661789074,3.1,178.56,178.52,376.4]
[1754661789274,3.1,178.54,178.53,115.9]
[1754661789474,6.31530467,178.54,178.53,115.9]
[1754661790677,6.31530467,178.54,178.42,611.36]
[1754661790987,3.1,178.51,178.45,6.43000684]
[1754661791186,3.1,178.49,178.46,115.88]
[1754661791377,3.1,178.47,178.46,115.88]
[1754661791578,6.31530467,178.47,178.46,115.88]
[1754661791886,3.1,178.45,178.44,115.86]
[1754661792093,6.31530467,178.45,178.44,115.86]
[1754661792886,3.1,178.44,178.37,6.43000684]
[1754661793081,3.1,178.41,178.38,115.84]
[1754661793382,3.21530467,178.4,178.39,5.6035]
[1754661793778,4.67e-06,178.4,178.39,12.03350684]
[1754661794088,3.1,178.46,178.39,6.43000684]
[1754661794390,3.1,178.48,178.47,5.601]
[1754661794580,6.21555816,178.52,178.47,115.82]
[1754661794982,3.1,178.49,178.48,5.6005]
[1754661795177,9.48766306,178.54,178.48,6.43000684]
[1754661795178,3.1,178.51,178.48,6.43000684]
[1754661795684,9.31555816,178.51,178.47,115.82]
[1754661795880,3.1,178.52,178.47,115.82]
[1754661796081,6.21555816,178.53,178.5,5.6]
[1754661796283,6.21555816,178.54,178.49,6.43000684]
[1754661796485,3.1,178.53,178.49,6.43000684]
[1754661796684,3.1,178.53,178.52,5.5995]
[1754661798883,3.1,178.56,178.52,5.5995]
[1754661799083,3.1,178.56,178.51,115.8]
[1754661799286,3.1,178.55,178.5,115.76]
[1754661799487,9.31555816,178.55,178.5,115.76]
[1754661799691,3.1,178.54,178.5,115.76]
[1754661800190,3.1,178.53,178.5,115.76]
[1754661800392,3.1,178.53,178.5,122.19000684]
[1754661800691,3.1,178.52,178.35,16.82]
[1754661800988,3.1,178.51,178.46,5.6013]
[1754661801190,3.1,178.5,178.46,115.72]
[1754661801382,3.1,178.49,178.46,115.72]
[1754661801586,3.1,178.49,178.47,5.601]
[1754661802090,3.1,178.53,178.47,5.601]
[1754661802784,3.1,178.53,178.46,122.15000684]
[1754661802990,9.31555816,178.53,178.46,115.72]
[1754661803190,3.1,178.52,178.46,115.72]
[1754661803393,3.1,178.52,178.46,121.3211]
[1754661803694,3.1,178.52,178.46,115.72]
[1754661803889,3.1,178.52,178.46,122.15000684]
[1754661804390,3.1,178.51,178.46,115.72]
[1754661804583,9.53000684,178.51,178.46,115.72]
[1754661804788,3.1,178.5,178.43,115.66]
[1754661805091,3.1,178.5,178.44,6.43000684]
[1754661805293,3.1,178.51,178.43,122.09000684]
[1754661805492,9.53000684,178.51,178.43,115.66]
[1754661805688,6.43000684,178.47,178.38,6.43000684]
[1754661805888,6.22994031,178.46,178.38,6.43000684]
[1754661806197,3.1,178.44,178.39,115.64]
[1754661806393,3.1,178.42,178.38,121.2438]
[1754661806594,3.1,178.4,178.38,121.2438]
[1754661806895,3.1,178.37,178.34,115.64]
[1754661807293,3.1,178.36,178.34,115.64]
[1754661807890,3.1,178.39,178.34,115.64]
[1754661808091,3.12994031,178.38,178.34,115.64]
[1754661808297,3.1,178.36,178.34,115.64]
[1754661809094,3.12994031,178.35,178.32,492.0]
[1754661809295,3.1,178.34,178.32,115.62]
[1754661809599,6.22994031,178.38,178.32,115.62]
[1754661809895,3.1,178.36,178.32,115.62]
[1754661810096,3.12994031,178.36,178.32,115.62]
[1754661810286,3.1,178.35,178.32,115.62]
[1754661810486,3.1,178.35,178.32,121.2255]
[1754661810690,3.1,178.37,178.32,115.62]
[1754661810892,3.1,178.36,178.32,115.62]
[1754661811101,3.1,178.35,178.32,121.2256]
[1754661811300,3.1,178.34,178.32,115.62]
[1754661811597,3.12994031,178.38,178.32,115.62]
[1754661811790,3.1,178.36,178.32,115.62]
[1754661812188,3.1,178.36,178.33,5.6052]
[1754661812500,3.1,178.38,178.32,115.62]
[1754661812899,3.1,178.38,178.32,122.05000684]
[1754661813598,6.43000684,178.43,178.32,122.05000684]
[1754661813800,3.1,178.35,178.32,115.62]
[1754661814102,3.1,178.35,178.32,121.2254]
[1754661814299,6.43000684,178.39,178.32,115.62]
[1754661814599,3.1,178.37,178.32,115.62]
[1754661814799,3.1,178.36,178.32,115.62]
[1754661815300,3.1,178.35,178.32,115.62]
[1754661815492,3.1,178.38,178.32,115.62]
[1754661815689,3.1,178.37,178.32,115.62]
[1754661815892,3.1,178.38,178.32,115.62]
[1754661816097,3.1187062,178.38,178.33,6.43000684]
[1754661816296,2.96,178.37,178.33,6.43000684]
[1754661816497,2.96,178.37,178.34,5.6049]
[1754661816688,3.1187062,178.39,178.33,6.43000684]
[1754661816894,2.96,178.37,178.33,6.43000684]
[1754661817297,2.96,178.39,178.33,6.43000684]
[1754661817598,2.96,178.39,178.37,5.6041]
[1754661817802,3.1187062,178.43,178.37,6.43000684]
[1754661818003,2.96,178.41,178.37,6.43000684]
[1754661818304,3.1187062,178.45,178.39,6.43000684]
[1754661818500,2.96,178.43,178.37,115.48]
[1754661818700,3.1187062,178.48,178.38,6.43000684]
[1754661818899,6.0787062,178.47,178.38,6.43000684]
[1754661819095,2.96,178.45,178.38,6.43000684]
[1754661819299,2.96,178.43,178.4,12.03290684]
[1754661819498,2.96,178.43,178.4,6.43000684]
[1754661820106,3.1187062,178.49,178.42,6.43000684]
[1754661820399,2.96,178.44,178.42,6.43000684]
[1754661820598,3.1187062,178.47,178.42,6.43000684]
[1754661820794,2.96,178.43,178.42,6.43000684]
[1754661821001,2.96,178.42,178.4,6.43000684]
[1754661821402,6.0787062,178.46,178.4,6.43000684]
[1754661821599,2.96,178.45,178.42,6.43000684]
[1754661821798,6.43000684,178.52,178.42,6.43000684]
[1754661821799,2.96,178.48,178.42,6.43000684]
[1754661822005,2.96,178.46,178.42,6.43000684]
[1754661822201,2.96,178.45,178.42,6.43000684]
[1754661822396,2.96,178.44,178.42,6.43000684]
[1754661822605,6.0787062,178.5,178.44,5.6019]
[1754661822803,2.96,178.48,178.46,6.43000684]
[1754661823110,2.96,178.48,178.47,5.601]
[1754661823305,2.96,178.48,178.46,6.43000684]
[1754661823702,2.96,178.48,178.46,12.03130684]
[1754661824108,2.96,178.48,178.46,6.43000684]
[1754661824508,134.5141317,178.64,178.47,115.36]
[1754661824509,2.96,178.51,178.47,115.36]
[1754661824707,3.1187062,178.51,178.49,5.6002]
[1754661825005,3.1187062,178.5,178.47,115.36]
[1754661825307,2.96,178.55,178.48,5.6007]
[1754661825503,2.96,178.53,178.47,115.36]
[1754661825709,3.1187062,178.52,178.47,115.36]
[1754661825897,2.96,178.49,178.47,120.9609]
[1754661826099,2.96,178.51,178.47,120.9609]
[1754661826412,2.96,178.53,178.48,6.43000684]
[1754661826606,3.1187062,178.52,178.48,6.43000684]
[1754661826804,2.96,178.48,178.47,115.36]
[1754661827998,2.96,178.48,178.47,115.3]
[1754661828409,6.0787062,178.48,178.47,115.3]
[1754661828604,2.96,178.48,178.47,115.3]
[1754661829108,2.96,178.5,178.47,115.3]
[1754661829412,6.0787062,178.49,178.48,6.43000684]
[1754661830109,2.96,178.48,178.47,115.3]
[1754661830308,3.1187062,178.48,178.47,115.3]
[1754661830611,3.1187062,178.49,178.47,115.3]
[1754661830804,6.0787062,178.49,178.48,6.43000684]
[1754661831005,6.0787062,178.49,178.47,115.3]
[1754661831209,6.0787062,178.48,178.47,115.3]
[1754661831610,3.1187062,178.48,178.47,115.3]
[1754661832113,3.1187062,178.48,178.47,120.901]
[1754661833213,6.21555816,178.57,178.48,5.6006]
[1754661833409,2.96,178.5,178.49,6.43000684]
[1754661833610,6.08641955,178.5,178.49,6.43000684]
[1754661833805,3.12641955,178.5,178.49,12.03040684]
[1754661834004,1.955e-05,178.5,178.49,12.03040684]
[1754661834200,6.21555816,178.6,178.47,115.3]
[1754661834402,2.96,178.59,178.49,6.43000684]
[1754661834605,2.96,178.58,178.49,6.43000684]
[1754661834806,2.96,178.58,178.51,6.43000684]
[1754661835005,2.96,178.58,178.53,5.5991]
[1754661835205,2.96,178.59,178.52,115.12]
[1754661835609,2.96,178.59,178.53,6.43000684]
[1754661835806,2.96,178.59,178.55,6.43000684]
[1754661836013,2.96,178.59,178.55,115.1]
[1754661836212,2.96,178.56,178.55,115.1]
[1754661836413,2.96,178.6,178.55,121.53000684]
[1754661836612,2.96,178.58,178.55,121.53000684]
[1754661836813,2.96,178.61,178.55,121.53000684]
[1754661837115,2.96,178.59,178.55,115.1]
[1754661837418,2.96,178.62,178.56,6.43000684]
[1754661837609,2.96,178.61,178.55,115.1]
[1754661837805,2.96,178.6,178.55,115.04]
[1754661838117,6.21555816,178.63,178.56,6.43000684]
[1754661838316,2.96,178.62,178.56,6.43000684]
[1754661838612,2.96,178.61,178.56,6.43000684]
[1754661839317,2.96,178.59,178.56,6.43000684]
[1754661839517,2.96,178.58,178.56,6.43000684]
[1754661839714,2.96,178.57,178.56,6.43000684]
[1754661839917,2.96,178.57,178.55,115.04]
[1754661840519,9.17555816,178.62,178.55,115.04]
[1754661840715,2.96,178.6,178.53,6.43000684]
[1754661841017,2.96,178.6,178.54,114.98]
[1754661841420,2.96,178.6,178.55,6.43000684]
[1754661841714,2.96,178.6,178.55,12.02830684]
[1754661842112,2.96,178.6,178.55,5.5983]
[1754661842513,2.96,178.6,178.54,121.41000684]
[1754661843119,2.96,178.59,178.56,6.43000684]
[1754661843419,2.96,178.58,178.56,6.43000684]
[1754661843620,2.96,178.63,178.56,6.43000684]
[1754661843920,6.21555816,178.65,178.58,6.43000684]
[1754661844120,2.96,178.61,178.59,114.9]
[1754661844317,2.96,178.65,178.59,114.9]
[1754661844624,2.96,178.6,178.55,114.88]
[1754661844817,2.96,178.6,178.54,114.88]
[1754661845222,8.5571,178.6,178.53,114.88]
[1754661845419,2.96,178.59,178.53,114.88]
[1754661845717,6.21555816,178.62,178.56,5.5979]
[1754661846020,3.0,178.64,178.56,6.43000684]
[1754661846217,3.0,178.62,178.58,6.43000684]
[1754661846422,3.0,178.62,178.6,6.43000684]
[1754661846716,3.0,178.63,178.6,6.43000684]
[1754661846917,3.0,178.66,178.59,114.84]
[1754661847219,3.0,178.64,178.59,114.84]
[1754661847518,3.0,178.63,178.6,6.43000684]
[1754661848119,3.06145282,178.65,178.59,114.84]
[1754661848418,3.06145282,178.65,178.48,376.56]
[1754661848419,3.0,178.62,178.56,114.8]
[1754661848624,3.0,178.61,178.56,114.8]
[1754661848825,3.0,178.6,178.56,114.8]
[1754661849019,3.06145282,178.63,178.56,120.3979]
[1754661849216,3.0,178.61,178.56,120.3979]
[1754661849421,3.0,178.61,178.56,114.8]
[1754661849824,9.49145966,178.61,178.49,6.43000684]
[1754661850024,3.0,178.58,178.48,382.99000684]
[1754661850216,5.5979,178.57,178.49,120.3603]
[1754661850424,3.0,178.55,178.49,114.76]
[1754661850722,3.0,178.55,178.44,6.43000684]
[1754661850723,3.0,178.49,178.43,5.6022]
[1754661850929,3.0,178.48,178.41,114.74]
[1754661851123,9.43000684,178.48,178.41,114.74]
[1754661851327,6.06145282,178.47,178.41,114.74]
[1754661851529,3.06145282,178.47,178.41,114.74]
[1754661851821,3.0,178.48,178.41,114.74]
[1754661852020,6.43000684,178.45,178.41,114.74]
[1754661852228,6.43000684,178.45,178.36,376.38]
[1754661852229,3.0,178.44,178.36,376.38]
[1754661852432,3.0,178.43,178.36,491.1]
[1754661852729,3.0,178.42,178.38,6.43000684]
[1754661853117,6.43000684,178.46,178.36,497.53000684]
[1754661853323,6.43000684,178.44,178.36,491.1]
[1754661853522,3.0,178.43,178.36,491.1]
[1754661853823,3.0,178.37,178.26,376.38]
[1754661854028,3.0,178.33,178.27,114.72]
[1754661854221,6.06145282,178.33,178.27,114.72]
[1754661854722,3.0,178.32,178.27,114.72]
[1754661854921,3.06145282,178.33,178.27,114.72]
[1754661855126,3.0,178.33,178.27,114.72]
[1754661855324,3.0,178.33,178.28,5.6069]